fUSD/lending_fUSD_20250616
["ID","MTS","AMOUNT","RATE_DAILY","PERIOD"]
[366130140,1750078237011,-490.0,0.00016438,2]
[366130142,1750078237020,-490.0,0.00016438,2]
[366130144,1750078237030,-1029.74,0.00016438,2]
[366130146,1750078237039,-490.0,0.00016438,2]
[366130148,1750078237049,-490.0,0.00016438,2]
[366130150,1750078237058,-490.0,0.00016438,2]
[366130152,1750078237068,-490.0,0.00016438,2]
[366130154,1750078237078,-818.43,0.00016438,2]
[366130156,1750078237087,-577.34,0.00016438,2]
[366130158,1750078237097,-490.0,0.00016438,2]
[366130160,1750078237107,-490.0,0.00016438,2]
[366130162,1750078237116,-490.0,0.00016438,2]
[366130164,1750078237126,-497.56,0.00016438,2]
[366130166,1750078237135,-496.1237935,0.00016438,2]
[366130168,1750078237144,-490.0,0.00016438,2]
[366130170,1750078237154,-1581.9,0.00016438,2]
[366130172,1750078237163,-1431.05,0.00016438,2]
[366130174,1750078237173,-490.0,0.00016438,2]
[366130176,1750078237183,-1011.41,0.00016438,2]
[366130178,1750078237192,-490.0,0.00016438,2]
[366130180,1750078237202,-490.0,0.00016438,2]
[366130182,1750078237213,-530.13,0.00016438,2]
[366130184,1750078237222,-490.0,0.00016438,2]
[366130186,1750078237230,-489.45315941,0.00016438,2]
[366130188,1750078237240,-758.96,0.00016438,2]
[366130190,1750078237250,-490.0,0.00016438,2]
[366130192,1750078237260,-490.0,0.00016438,2]
[366130194,1750078237270,-425.38893316,0.00016438,2]
[366130196,1750078237280,-490.0,0.00016438,2]
[366130198,1750078237290,-490.0,0.00016438,2]
[366130200,1750078237299,-758.28,0.00016438,2]
[366130202,1750078237313,-490.0,0.00016438,2]
[366130204,1750078237322,-490.0,0.00016438,2]
[366130206,1750078237331,-490.0,0.00016438,2]
[366130208,1750078237340,-806.93,0.00016438,2]
[366130210,1750078237350,-525.21,0.00016438,2]
[366130211,1750078237360,-1839.58,0.00016438,2]
[366130213,1750078237369,-490.0,0.00016438,2]
[366130215,1750078237380,-1062.41,0.00016438,2]
[366130218,1750078237391,-490.0,0.00016438,2]
[366130220,1750078237400,-1400.99,0.00016438,2]
[366130221,1750078237411,-490.0,0.00016438,2]
[366130223,1750078237421,-490.0,0.00016438,2]
[366130225,1750078237430,-490.0,0.00016438,2]
[366130227,1750078237440,-462.31226132,0.00016438,2]
[366130229,1750078237450,-990.74,0.00016438,2]
[366130232,1750078237466,-490.0,0.00016438,2]
[366130234,1750078237478,-490.0,0.00016438,2]
[366130237,1750078237494,-490.0,0.00016438,2]
[366130239,1750078237507,-671.4,0.00016438,2]
[366130242,1750078237521,-490.0,0.00016438,2]
[366130244,1750078237533,-490.0,0.00016438,2]
[366130246,1750078237545,-490.0,0.00016438,2]
[366130248,1750078237557,-490.0,0.00016438,2]
[366130251,1750078237569,-490.0,0.00016438,2]
[366130253,1750078237583,-490.0,0.00016438,2]
[366130256,1750078237596,-490.0,0.00016438,2]
[366130258,1750078237609,-250.0,0.00016438,2]
[366130260,1750078237622,-992.39,0.00016438,2]
[366130263,1750078237636,-490.0,0.00016438,2]
[366130265,1750078237650,-490.0,0.00016438,2]
[366130267,1750078237663,-490.0,0.00016438,2]
[366130269,1750078237675,-538.73,0.00016438,2]
[366130272,1750078237687,-490.0,0.00016438,2]
[366130274,1750078237698,-490.0,0.00016438,2]
[366130276,1750078237708,-490.0,0.00016438,2]
[366130278,1750078237720,-16743.12,0.00016438,2]
[366130280,1750078237734,-490.0,0.00016438,2]
[366130283,1750078237747,-490.0,0.00016438,2]
[366130285,1750078237760,-1073.49,0.00016438,2]
[366130287,1750078237774,-490.0,0.00016438,2]
[366130290,1750078237788,-259.49593522,0.00016438,2]
[366130292,1750078237800,-490.0,0.00016438,2]
[366130294,1750078237815,-1762.72,0.00016438,2]
[366130297,1750078237828,-490.0,0.00016438,2]
[366130299,1750078237843,-14895.1,0.00016438,2]
[366130301,1750078237856,-490.0,0.00016438,2]
[366130304,1750078237869,-490.0,0.00016438,2]
[366130306,1750078237884,-490.0,0.00016438,2]
[366130308,1750078237897,-490.0,0.00016438,2]
[366130311,1750078237910,-670.33,0.00016438,2]
[366130313,1750078237923,-464.45126555,0.00016438,2]
[366130315,1750078237936,-490.0,0.00016438,2]
[366130318,1750078237950,-1759.91,0.00016438,2]
[366130320,1750078237962,-492.26547634,0.00016438,2]
[366130322,1750078237973,-392.32586532,0.00016438,2]
[366130325,1750078237986,-1174.28,0.00016438,2]
[366130327,1750078237999,-1329.41,0.00016438,2]
[366130329,1750078238014,-490.0,0.00016438,2]
[366130332,1750078238027,-490.0,0.00016438,2]
[366130334,1750078238039,-490.0,0.00016438,2]
[366130336,1750078238051,-490.0,0.00016438,2]
[366130338,1750078238064,-2193.58,0.00016438,2]
[366130340,1750078238074,-1003.95,0.00016438,2]
[366130342,1750078238085,-3338.91,0.00016438,2]
[366130345,1750078238097,-332.37257497,0.00016438,2]
[366130347,1750078238109,-490.0,0.00016438,2]
[366130349,1750078238123,-490.0,0.00016438,2]
[366130352,1750078238137,-490.0,0.00016438,2]
[366130354,1750078238152,-207.32054634,0.00016438,2]
[366130356,1750078238164,-423.11114781,0.00016438,2]
[366130359,1750078238175,-8298.07,0.00016438,2]
[366130361,1750078238186,-490.0,0.00016438,2]
[366130364,1750078238197,-973.59,0.00016438,2]
[366130367,1750078238208,-490.0,0.00016438,2]
[366130369,1750078238222,-490.0,0.00016438,2]
[366130372,1750078238235,-490.0,0.00016438,2]
[366130375,1750078238250,-2571.48,0.00016438,2]
[366130377,1750078238264,-1953.36,0.00016438,2]
[366130379,1750078238275,-490.0,0.00016438,2]
[366130381,1750078238286,-1640.63,0.00016438,2]
[366130384,1750078238297,-704.81,0.00016438,2]
[366130386,1750078238313,-490.0,0.00016438,2]
[366130388,1750078238326,-490.0,0.00016438,2]
[366130391,1750078238339,-490.0,0.00016438,2]
[366130393,1750078238351,-1252.84,0.00016438,2]
[366130395,1750078238363,-490.0,0.00016438,2]
[366130397,1750078238375,-490.0,0.00016438,2]
[366130399,1750078238387,-490.0,0.00016438,2]
[366130401,1750078238398,-3629.72,0.00016438,2]
[366130403,1750078238410,-490.0,0.00016438,2]
[366130406,1750078238422,-490.0,0.00016438,2]
[366130408,1750078238433,-1074.57,0.00016438,2]
[366130410,1750078238445,-490.0,0.00016438,2]
[366130412,1750078238456,-491.53352089,0.00016438,2]
[366130413,1750078238469,-490.93133579,0.00016438,2]
[366130414,1750078238480,-1044.9,0.00016438,2]
[366130415,1750078238493,-1053.98,0.00016438,2]
[366130416,1750078238505,-490.0,0.00016438,2]
[366130417,1750078238516,-490.0,0.00016438,2]
[366130418,1750078238529,-524.26324058,0.00016438,2]
[366130419,1750078238540,-7713.6,0.00016438,2]
[366130420,1750078238551,-490.0,0.00016438,2]
[366130421,1750078238563,-490.0,0.00016438,2]
[366130422,1750078238575,-1105.91,0.00016438,2]
[366130423,1750078238586,-420.47452548,0.00016438,2]
[366130424,1750078238599,-490.0,0.00016438,2]
[366130426,1750078238611,-490.83598589,0.00016438,2]
[366130428,1750078238622,-1342.04,0.00016438,2]
[366130430,1750078238634,-485.20201544,0.00016438,2]
[366130433,1750078238655,-490.0,0.00016438,2]
[366130435,1750078238666,-490.92918308,0.00016438,2]
[366130437,1750078238677,-490.0,0.00016438,2]
[366130439,1750078238689,-541.37,0.00016438,2]
[366130442,1750078238701,-490.0,0.00016438,2]
[366130444,1750078238712,-490.0,0.00016438,2]
[366130446,1750078238724,-724.29,0.00016438,2]
[366130448,1750078238736,-7889.18,0.00016438,2]
[366130450,1750078238748,-490.0,0.00016438,2]
[366130453,1750078238759,-979.0,0.00016438,2]
[366130455,1750078238771,-492.36961495,0.00016438,2]
[366130457,1750078238782,-384.96059406,0.00016438,2]
[366130459,1750078238793,-490.0,0.00016438,2]
[366130461,1750078238805,-490.0,0.00016438,2]
[366130463,1750078238817,-490.0,0.00016438,2]
[366130465,1750078238828,-490.0,0.00016438,2]
[366130466,1750078238840,-2551.06,0.00016438,2]
[366130467,1750078238851,-3238.01,0.00016438,2]
[366130468,1750078238863,-490.0,0.00016438,2]
[366130469,1750078238875,-490.0,0.00016438,2]
[366130470,1750078238887,-1332.72,0.00016438,2]
[366130471,1750078238899,-1145.16,0.00016438,2]
[366130472,1750078238910,-490.0,0.00016438,2]
[366130474,1750078238921,-3275.31,0.00016438,2]
[366130476,1750078238933,-490.0,0.00016438,2]
[366130478,1750078238945,-783.44,0.00016438,2]
[366130481,1750078238957,-490.0,0.00016438,2]
[366130483,1750078238969,-490.0,0.00016438,2]
[366130485,1750078238981,-773.64,0.00016438,2]
[366130487,1750078238992,-490.0,0.00016438,2]
[366130489,1750078239004,-1275.36,0.00016438,2]
[366130491,1750078239015,-1793.5,0.00016438,2]
[366130494,1750078239027,-4765.04,0.00016438,2]
[366130495,1750078239039,-491.0044983,0.00016438,2]
[366130497,1750078239050,-5780.15,0.00016438,2]
[366130500,1750078239061,-490.0,0.00016438,2]
[366130501,1750078239073,-885.6,0.00016438,2]
[366130502,1750078239085,-490.0,0.00016438,2]
[366130503,1750078239097,-1110.64,0.00016438,2]
[366130504,1750078239108,-562.13,0.00016438,2]
[366130505,1750078239120,-1328.26,0.00016438,2]
[366130506,1750078239132,-1328.98,0.00016438,2]
[366130507,1750078239144,-222.42428426,0.00016438,2]
[366130508,1750078239156,-490.0,0.00016438,2]
[366130509,1750078239168,-2511.4,0.00016438,2]
[366130510,1750078239179,-889.61,0.00016438,2]
[366130511,1750078239192,-461.69143354,0.00016438,2]
[366130512,1750078239204,-356.2222393,0.00016438,2]
[366130513,1750078239217,-493.49968535,0.00016438,2]
[366130514,1750078239228,-1642.29,0.00016438,2]
[366130515,1750078239240,-490.0,0.00016438,2]
[366130516,1750078239253,-14003.39,0.00016438,2]
[366130517,1750078239265,-712.83,0.00016438,2]
[366130518,1750078239277,-490.0,0.00016438,2]
[366130519,1750078239288,-994.59,0.00016438,2]
[366130520,1750078239301,-490.0,0.00016438,2]
[366130521,1750078239316,-490.0,0.00016438,2]
[366130522,1750078239328,-518.97,0.00016438,2]
[366130523,1750078239340,-490.0,0.00016438,2]
[366130524,1750078239352,-965.67,0.00016438,2]
[366130525,1750078239363,-589.42,0.00016438,2]
[366130526,1750078239374,-435.38635329,0.00016438,2]
[366130527,1750078239386,-1018.26,0.00016438,2]
[366130528,1750078239399,-3709.89,0.00016438,2]
[366130529,1750078239411,-490.0,0.00016438,2]
[366130530,1750078239423,-490.0,0.00016438,2]
[366130531,1750078239435,-2991.1,0.00016438,2]
[366130532,1750078239447,-490.0,0.00016438,2]
[366130533,1750078239459,-490.0,0.00016438,2]
[366130534,1750078239471,-1369.8,0.00016438,2]
[366130535,1750078239482,-490.0,0.00016438,2]
[366130536,1750078239493,-490.0,0.00016438,2]
[366130537,1750078239504,-490.0,0.00016438,2]
[366130538,1750078239516,-3909.53,0.00016438,2]
[366130541,1750078239528,-490.0,0.00016438,2]
[366130543,1750078239540,-490.0,0.00016438,2]
[366130545,1750078239552,-490.0,0.00016438,2]
[366130547,1750078239564,-4049.46,0.00016438,2]
[366130549,1750078239576,-3513.07,0.00016438,2]
[366130551,1750078239588,-510.1,0.00016438,2]
[366130553,1750078239600,-1042.11,0.00016438,2]
[366130555,1750078239611,-1672.75,0.00016438,2]
[366130558,1750078239622,-870.88,0.00016438,2]
[366130560,1750078239633,-490.0,0.00016438,2]
[366130562,1750078239645,-9243.09,0.00016438,2]
[366130564,1750078239656,-1968.25,0.00016438,2]
[366130566,1750078239667,-679.93,0.00016438,2]
[366130568,1750078239679,-490.0,0.00016438,2]
[366130570,1750078239690,-1667.8,0.00016438,2]
[366130572,1750078239701,-490.0,0.00016438,2]
[366130574,1750078239712,-1141.3,0.00016438,2]
[366130576,1750078239724,-490.0,0.00016438,2]
[366130579,1750078239735,-490.0,0.00016438,2]
[366130581,1750078239747,-1032.97,0.00016438,2]
[366130583,1750078239757,-490.0,0.00016438,2]
[366130585,1750078239769,-740.37,0.00016438,2]
[366130587,1750078239781,-490.0,0.00016438,2]
[366130589,1750078239792,-113.17479535,0.00016438,2]
[366130738,1750078241316,-2398.43520465,0.00016438,2]
[366130740,1750078241326,-939.48430973,0.00016438,2]
[366130881,1750078242790,-633.23768593,0.00015872,2]
[366130883,1750078242799,-423.96811959,0.00016438,2]
[366130887,1750078242826,-2212.14033473,0.00016438,2]
[366130891,1750078242863,-3720.77723595,0.00016438,2]
[366130893,1750078242873,-490.0,0.00016438,2]
[366130894,1750078242883,-4796.69,0.00016438,2]
[366130895,1750078242894,-490.0,0.00016438,2]
[366130896,1750078242904,-2329.79,0.00016438,2]
[366130897,1750078242914,-490.0,0.00016438,2]
[366130898,1750078242924,-665.8,0.00016438,2]
[366130899,1750078242933,-1065.24,0.00016438,2]
[366130900,1750078242943,-490.0,0.00016438,2]
[366130901,1750078242952,-1675.56,0.00016438,2]
[366130902,1750078242962,-1209.3,0.00016438,2]
[366130903,1750078242971,-490.0,0.00016438,2]
[366130904,1750078242981,-1777.37,0.00016438,2]
[366130905,1750078242990,-500.0,0.00016438,2]
[366130906,1750078242999,-500.0,0.00016438,2]
[366130907,1750078243009,-490.0,0.00016438,2]
[366130908,1750078243018,-3309.41,0.00016438,2]
[366130909,1750078243028,-490.0,0.00016438,2]
[366130910,1750078243037,-806.67,0.00016438,2]
[366130911,1750078243047,-490.0,0.00016438,2]
[366130912,1750078243056,-1515.21,0.00016438,2]
[366130913,1750078243066,-490.0,0.00016438,2]
[366130914,1750078243076,-528.5,0.00016438,2]
[366130915,1750078243085,-1128.53,0.00016438,2]
[366130916,1750078243095,-682.71,0.00016438,2]
[366130917,1750078243105,-490.0,0.00016438,2]
[366130918,1750078243114,-490.0,0.00016438,2]
[366130919,1750078243124,-5323.48,0.00016438,2]
[366130920,1750078243134,-3153.86,0.00016438,2]
[366130921,1750078243144,-490.0,0.00016438,2]
[366130923,1750078243153,-490.0,0.00016438,2]
[366130924,1750078243163,-490.0,0.00016438,2]
[366130925,1750078243172,-470.38285688,0.00016438,2]
[366130926,1750078243182,-3580.52,0.00016438,2]
[366130927,1750078243192,-1405.2,0.00016438,2]
[366130928,1750078243201,-482.92118788,0.00016438,2]
[366130929,1750078243211,-490.0,0.00016438,2]
[366130930,1750078243221,-1728.34,0.00016438,2]
[366130932,1750078243319,-490.0,0.00016438,2]
[366130933,1750078243330,-5169.73,0.00016438,2]
[366130934,1750078243339,-1024.95,0.00016438,2]
[366130935,1750078243350,-2041.79,0.00016438,2]
[366130936,1750078243359,-490.0,0.00016438,2]
[366130937,1750078243369,-1111.21,0.00016438,2]
[366130938,1750078243378,-490.0,0.00016438,2]
[366130939,1750078243390,-490.0,0.00016438,2]
[366130940,1750078243400,-490.0,0.00016438,2]
[366130941,1750078243410,-1706.76,0.00016438,2]
[366130942,1750078243422,-499.22674662,0.00016438,2]
[366130944,1750078243432,-1178.24,0.00016438,2]
[366130946,1750078243442,-825.15,0.00016438,2]
[366130948,1750078243452,-509.57,0.00016438,2]
[366130950,1750078243462,-490.0,0.00016438,2]
[366130952,1750078243473,-496.27368078,0.00016438,2]
[366130953,1750078243484,-1768.93,0.00016438,2]
[366130954,1750078243493,-490.0,0.00016438,2]
[366130955,1750078243504,-490.0,0.00016438,2]
[366130956,1750078243513,-1416.18,0.00016438,2]
[366130957,1750078243524,-1041.6,0.00016438,2]
[366130958,1750078243534,-490.0,0.00016438,2]
[366130959,1750078243544,-490.0,0.00016438,2]
[366130960,1750078243554,-2669.87,0.00016438,2]
[366130961,1750078243564,-490.0,0.00016438,2]
[366130962,1750078243573,-180.61493743,0.00016438,2]
[366130963,1750078243583,-1334.3,0.00016438,2]
[366130964,1750078243593,-490.0,0.00016438,2]
[366130965,1750078243603,-18718.96,0.00016438,2]
[366130966,1750078243613,-490.0,0.00016438,2]
[366130967,1750078243623,-1489.89,0.00016438,2]
[366130968,1750078243633,-901.81,0.00016438,2]
[366130969,1750078243643,-742.4,0.00016438,2]
[366130970,1750078243652,-859.79,0.00016438,2]
[366130971,1750078243662,-825.94,0.00016438,2]
[366130973,1750078243671,-490.0,0.00016438,2]
[366130974,1750078243681,-490.0,0.00016438,2]
[366130975,1750078243691,-750.4,0.00016438,2]
[366130976,1750078243701,-5978.21,0.00016438,2]
[366130977,1750078243710,-490.0,0.00016438,2]
[366130978,1750078243720,-759.25,0.00016438,2]
[366130979,1750078243729,-1567.73,0.00016438,2]
[366130980,1750078243739,-490.0,0.00016438,2]
[366130981,1750078243749,-490.0,0.00016438,2]
[366130982,1750078243758,-490.0,0.00016438,2]
[366130984,1750078243768,-714.49,0.00016438,2]
[366130986,1750078243778,-2576.3,0.00016438,2]
[366130987,1750078243787,-490.0,0.00016438,2]
[366130988,1750078243798,-2323.34,0.00016438,2]
[366130989,1750078243808,-386.06768237,0.00016438,2]
[366130990,1750078243817,-1291.64,0.00016438,2]
[366130993,1750078243827,-490.0,0.00016438,2]
[366130995,1750078243837,-916.74,0.00016438,2]
[366130996,1750078243847,-1703.3,0.00016438,2]
[366130997,1750078243856,-1123.61,0.00016438,2]
[366130998,1750078243866,-490.0,0.00016438,2]
[366130999,1750078243875,-490.0,0.00016438,2]
[366131000,1750078243885,-1711.17,0.00016438,2]
[366131001,1750078243894,-493.82803285,0.00016438,2]
[366131002,1750078243904,-490.0,0.00016438,2]
[366131003,1750078243913,-516.16,0.00016438,2]
[366131004,1750078243922,-490.0,0.00016438,2]
[366131005,1750078243933,-490.0,0.00016438,2]
[366131006,1750078243943,-597.62,0.00016438,2]
[366131007,1750078243953,-695.2,0.00016438,2]
[366131008,1750078243962,-490.0,0.00016438,2]
[366131009,1750078243973,-972.35,0.00016438,2]
[366131010,1750078243984,-920.8,0.00016438,2]
[366131011,1750078243994,-8473.85,0.00016438,2]
[366131012,1750078244003,-490.68759933,0.00016438,2]
[366131013,1750078244012,-803.88,0.00016438,2]
[366131014,1750078244022,-961.06,0.00016438,2]
[366131015,1750078244031,-490.0,0.00016438,2]
[366131016,1750078244041,-2661.7,0.00016438,2]
[366131017,1750078244051,-490.0,0.00016438,2]
[366131018,1750078244060,-490.0,0.00016438,2]
[366131019,1750078244070,-1249.12,0.00016438,2]
[366131020,1750078244080,-1939.36,0.00016438,2]
[366131021,1750078244090,-492.62926122,0.00016438,2]
[366131022,1750078244107,-580.91,0.00016438,2]
[366131023,1750078244117,-490.0,0.00016438,2]
[366131024,1750078244127,-1012.09953117,0.00016438,2]
[366131025,1750078244139,-500.0,0.00016438,2]
[366131026,1750078244149,-490.0,0.00016438,2]
[366131027,1750078244160,-490.0,0.00016438,2]
[366131028,1750078244170,-490.0,0.00016438,2]
[366131029,1750078244181,-1133.49,0.00016438,2]
[366131030,1750078244191,-2822.46,0.00016438,2]
[366131031,1750078244200,-490.0,0.00016438,2]
[366131032,1750078244210,-490.0,0.00016438,2]
[366131033,1750078244220,-792.58,0.00016438,2]
[366131034,1750078244230,-854.2,0.00016438,2]
[366131035,1750078244239,-1181.86,0.00016438,2]
[366131036,1750078244249,-8757.33,0.00016438,2]
[366131037,1750078244259,-2478.93,0.00016438,2]
[366131038,1750078244268,-580.48,0.00016438,2]
[366131039,1750078244278,-516.08286717,0.00016438,2]
[366131040,1750078244288,-1081.43,0.00016438,2]
[366131041,1750078244298,-2446.87,0.00016438,2]
[366131042,1750078244311,-3018.79,0.00016438,2]
[366131043,1750078244321,-3308.35,0.00016438,2]
[366131044,1750078244331,-1200.71,0.00016438,2]
[366131045,1750078244340,-490.0,0.00016438,2]
[366131046,1750078244350,-490.0,0.00016438,2]
[366131047,1750078244361,-899.15,0.00016438,2]
[366131048,1750078244371,-1361.64,0.00016438,2]
[366131049,1750078244381,-490.0,0.00016438,2]
[366131050,1750078244391,-490.0,0.00016438,2]
[366131051,1750078244400,-490.000001,0.00016438,2]
[366131052,1750078244409,-1149.01,0.00016438,2]
[366131053,1750078244419,-684.43,0.00016438,2]
[366131054,1750078244428,-4840.07,0.00016438,2]
[366131055,1750078244438,-1187.77,0.00016438,2]
[366131056,1750078244447,-3276.97,0.00016438,2]
[366131057,1750078244457,-508.82,0.00016438,2]
[366131058,1750078244466,-490.0,0.00016438,2]
[366131059,1750078244475,-477.68011863,0.00016438,2]
[366131060,1750078244485,-490.0,0.00016438,2]
[366131061,1750078244494,-490.0,0.00016438,2]
[366131062,1750078244503,-1098.57,0.00016438,2]
[366131063,1750078244513,-1262.5,0.00016438,2]
[366131064,1750078244523,-1056.75,0.00016438,2]
[366131065,1750078244533,-933.25,0.00016438,2]
[366131066,1750078244542,-490.0,0.00016438,2]
[366131067,1750078244551,-1878.21,0.00016438,2]
[366131068,1750078244560,-724.96,0.00016438,2]
[366131069,1750078244570,-490.0,0.00016438,2]
[366131070,1750078244579,-490.0,0.00016438,2]
[366131071,1750078244588,-460.0,0.00016438,2]
[366131072,1750078244598,-1054.63,0.00016438,2]
[366131073,1750078244607,-591.97733761,0.00016438,2]
[366131074,1750078244616,-490.0,0.00016438,2]
[366131075,1750078244625,-490.0,0.00016438,2]
[366131076,1750078244633,-713.35,0.00016438,2]
[366131077,1750078244643,-927.34,0.00016438,2]
[366131078,1750078244653,-500.0,0.00016438,2]
[366131079,1750078244662,-500.0,0.00016438,2]
[366131080,1750078244672,-1395.5,0.00016438,2]
[366131081,1750078244682,-500.0,0.00016438,2]
[366131082,1750078244692,-500.0,0.00016438,2]
[366131083,1750078244701,-490.0,0.00016438,2]
[366131084,1750078244710,-2678.21,0.00016438,2]
[366131085,1750078244720,-207.43881867,0.00016438,2]
[366131086,1750078244731,-490.0,0.00016438,2]
[366131087,1750078244740,-490.0,0.00016438,2]
[366131088,1750078244751,-490.0,0.00016438,2]
[366131089,1750078244760,-490.0,0.00016438,2]
[366131090,1750078244770,-57273.76,0.0001647,2]
[366131091,1750078244779,-867.9924602,0.00016478,2]
[366131092,1750078244788,-151.0,0.00016483,2]
[366131093,1750078244798,-152.0,0.00016486,3]
[366131094,1750078244807,-152.86025,0.00016499,2]
[366131095,1750078244816,-162.74938912,0.00016502,2]
[366131096,1750078244825,-154.07976941,0.00016502,2]
[366131097,1750078244834,-283.09327194,0.00016538,2]
[366131098,1750078244843,-833.8156298,0.00016569,2]
[366131099,1750078244853,-152.86025,0.00016579,2]
[366131100,1750078244862,-154.07976937,0.00016582,2]
[366131101,1750078244871,-2861.17,0.000166,2]
[366131102,1750078244880,-168.0,0.00016601,2]
[366131103,1750078244890,-189.87,0.00016601,2]
[366131104,1750078244899,-500.0,0.00016601,2]
[366131105,1750078244908,-305.43,0.00016602,2]
[366131106,1750078244917,-151.0,0.00016602,2]
[366131107,1750078244926,-151.0,0.00016602,2]
[366131108,1750078244935,-151.0,0.00016602,2]
[366131109,1750078244945,-151.0,0.00016602,2]
[366131110,1750078244954,-151.0,0.00016602,2]
[366131111,1750078244963,-152.371749,0.00016602,2]
[366131112,1750078244973,-399.697618,0.00016602,2]
[366131113,1750078244982,-399.697618,0.00016602,2]
[366131114,1750078244992,-490.0,0.00016602,2]
[366131115,1750078245001,-490.0,0.00016602,2]
[366131116,1750078245011,-490.0,0.00016602,2]
[366131117,1750078245020,-490.0,0.00016602,2]
[366131118,1750078245030,-531.77,0.00016602,2]
[366131119,1750078245041,-490.0,0.00016602,2]
[366131120,1750078245050,-527.97,0.00016602,2]
[366131121,1750078245061,-490.0,0.00016602,2]
[366131122,1750078245071,-490.0,0.00016602,2]
[366131123,1750078245080,-490.0,0.00016602,2]
[366131124,1750078245090,-490.0,0.00016602,2]
[366131125,1750078245099,-490.0,0.00016602,2]
[366131126,1750078245108,-490.0,0.00016602,2]
[366131127,1750078245118,-490.0,0.00016602,2]
[366131128,1750078245127,-490.0,0.00016602,2]
[366131129,1750078245136,-182.26921603,0.00016602,2]
[366131130,1750078245145,-490.0,0.00016602,2]
[366131131,1750078245155,-490.0,0.00016602,2]
[366131132,1750078245164,-490.0,0.00016602,2]
[366131133,1750078245174,-490.0,0.00016602,2]
[366131134,1750078245183,-599.0,0.00016602,2]
[366131135,1750078245192,-490.0,0.00016602,2]
[366131136,1750078245202,-494.07881856,0.00016602,2]
[366131137,1750078245211,-490.0,0.00016602,2]
[366131138,1750078245220,-490.0,0.00016602,2]
[366131139,1750078245229,-490.0,0.00016602,2]
[366131140,1750078245239,-490.0,0.00016602,2]
[366131141,1750078245249,-533.26,0.00016602,2]
[366131142,1750078245259,-490.0,0.00016602,2]
[366131143,1750078245268,-490.0,0.00016602,2]
[366131144,1750078245278,-490.0,0.00016602,2]
[366131145,1750078245287,-490.0,0.00016602,2]
[366131146,1750078245296,-490.0,0.00016602,2]
[366131147,1750078245308,-490.0,0.00016602,2]
[366131148,1750078245318,-493.34901741,0.00016602,2]
[366131149,1750078245328,-490.0,0.00016602,2]
[366131150,1750078245337,-490.0,0.00016602,2]
[366131151,1750078245347,-490.0,0.00016602,2]
[366131152,1750078245356,-490.0,0.00016602,2]
[366131153,1750078245366,-800.39,0.00016602,2]
[366131154,1750078245376,-859.06,0.00016602,2]
[366131155,1750078245387,-490.0,0.00016602,2]
[366131156,1750078245397,-490.0,0.00016602,2]
[366131157,1750078245406,-490.0,0.00016602,2]
[366131158,1750078245415,-490.0,0.00016602,2]
[366131159,1750078245425,-490.0,0.00016602,2]
[366131160,1750078245434,-490.0,0.00016602,2]
[366131161,1750078245444,-490.0,0.00016602,2]